[Event "78th GEO-ch Women 1st League 2021"]
[Site "Tbilisi"]
[Date "2021.03.20"]
[Round "3.3"]
[White "Esadze, Tamari"]
[Black "Mikadze, Miranda"]
[Result "1-0"]
[ECO "C60"]
[WhiteElo "1889"]
[BlackElo "2269"]
[Annotator "NA"]
[PlyCount "89"]
[EventDate "2021.03.18"]
[EventType "swiss"]
[EventCountry "GEO"]
[SourceTitle "playchess.com"]
[Source "ChessBase"]
[SourceQuality "1"]
[TimeControl "5400+30"]

1. e4 {[%emt 0:00:21]} e5 {[%emt 0:00:00]} 2. Nf3 {[%emt 0:00:14]} Nc6 {[%emt 0:00:00]} 3. Bb5 {[%emt 0:00:06]} Nge7 {[%emt 0:00:00]} 4. O-O {[%emt 0:00:06]} g6 {[%emt 0:00:00]} 5. c3 {[%emt 0:00:15]} Bg7 {[%emt 0:00:00]} 6. d4 {[%emt 0:00:05]} a6 {[%emt 0:00:06]} 7. Ba4 {[%emt 0:00:39]} exd4 {[%emt 0:00:05]} 8. cxd4 {[%emt 0:00:05]} b5 {[%emt 0:00:21]} 9. Bc2 {[%emt 0:02:06]} O-O {[%emt 0:00:26]} 10. Be3 {[%emt 0:04:53]} d5 {[%emt 0:00:18]} 11. e5 {[%emt 0:02:55]} Bf5 {[%emt 0:00:46]} 12. Bxf5 {[%emt 0:03:50]} Nxf5 {[%emt 0:00:05]} 13. Qc2 {[%emt 0:00:27]} Na5 {[%emt 0:01:48]} 14. Bd2 {[%emt 0:05:43]} Nc4 {[%emt 0:01:04]} 15. Bb4 {[%emt 0:02:02]} Re8 {[%emt 0:00:16]} 16. b3 {[%emt 0:01:51]} Nb6 {[%emt 0:01:59]} 17. Nbd2 {[%emt 0:03:43]} f6 {[%emt 0:00:33]} 18. Rfe1 {[%emt 0:10:55]} fxe5 {[%emt 0:02:51]} 19. dxe5 {[%emt 0:00:05]} Rc8 {[%emt 0:03:02]} 20. Qc6 {[%emt 0:05:18]} Qd7 {[%emt 0:00:30]} 21. Rac1 {[%emt 0:01:07]} Re6 {[%emt 0:01:21]} 22. Qxd7 {[%emt 0:17:16]} Nxd7 {[%emt 0:00:03]} 23. g4 {[%emt 0:00:06]} Nh6 {[%emt 0:00:41]} 24. Bd6 {[%emt 0:02:14]} Nxg4 {[%emt 0:03:26]} 25. Ng5 {[%emt 0:07:38]} Ree8 {[%emt 0:04:26]} 26. e6 {[%emt 0:00:09]} Nf8 {[%emt 0:00:50]} 27. e7 {[%emt 0:03:40]} Nd7 {[%emt 0:00:22]} 28. Ne6 {[%emt 0:02:39]} Bh6 {[%emt 0:02:07]} 29. Rxc7 {[%emt 0:08:36]} Ngf6 {[%emt 0:04:16]} 30. Nf3 {[%emt 0:02:12]} Nb6 {[%emt 0:02:51]} 31. Rxc8 {[%emt 0:02:56]} Nxc8 {[%emt 0:00:27]} 32. Bc5 {[%emt 0:02:19]} Ne4 {[%emt 0:01:11]} 33. Nc7 {[%emt 0:00:36]} Rxe7 {[%emt 0:00:08]} 34. Bxe7 {[%emt 0:00:05]} Nxe7 {[%emt 0:00:03]} 35. Nxa6 {[%emt 0:01:12]} Nc6 {[%emt 0:01:32]} 36. Nc7 {[%emt 0:01:26]} Nc3 {[%emt 0:00:22]} 37. Re6 {[%emt 0:01:36]} Nb4 {[%emt 0:00:15]} 38. a3 {[%emt 0:00:52]} Nc2 {[%emt 0:01:06]} 39. Rc6 {[%emt 0:01:05]} d4 {[%emt 0:00:02]} 40. Ne6 {[%emt 0:00:58]} Ne2+ {[%emt 0:08:55]} 41. Kf1 {[%emt 0:00:03]} d3 {[%emt 0:00:03]} 42. Ne5 {[%emt 0:00:19]} Bf8 {[%emt 0:01:03]} 43. Rc8 {[%emt 0:00:08]} h6 {[%emt 0:00:38]} 44. Rxf8+ {[%emt 0:00:18]} Kh7 {[%emt 0:00:01]} 45. Rf7+ {[%emt 0:00:08]} 1-0

[Event "78th GEO-ch Women 1st League 2021"]
[Site "Tbilisi"]
[Date "2021.03.20"]
[Round "3.4"]
[White "Bedoshvili, Dea"]
[Black "Janiashvili, Mariami"]
[Result "1/2-1/2"]
[ECO "D05"]
[WhiteElo "1667"]
[BlackElo "1963"]
[Annotator "NA RC"]
[PlyCount "81"]
[EventDate "2021.03.18"]
[EventType "swiss"]
[EventCountry "GEO"]
[SourceTitle "playchess.com"]
[Source "ChessBase"]
[SourceQuality "1"]
[TimeControl "5400+30"]

1. d4 {[%emt 0:06:06]} Nf6 {[%emt 0:00:00]} 2. Nf3 {[%emt 0:00:07]} d5 {[%emt 0:00:09]} 3. Nbd2 {[%emt 0:00:18]} c5 {[%emt 0:00:55]} 4. e3 {[%emt 0:00:25]} e6 {[%emt 0:01:10]} 5. c3 {[%emt 0:00:26]} Nc6 {[%emt 0:00:05]} 6. Bd3 {[%emt 0:00:11]} Bd6 {[%emt 0:00:07]} 7. O-O {[%emt 0:00:35]} O-O {[%emt 0:00:49]} 8. dxc5 {[%emt 0:00:21]} Bxc5 {[%emt 0:00:06]} 9. e4 {[%emt 0:00:12]} Qc7 {[%emt 0:02:08]} 10. Qc2 {[%emt 0:06:23]} h6 {[%emt 0:01:24]} 11. exd5 {[%emt 0:03:55]} Nxd5 {[%emt 0:07:06]} 12. Ne4 {[%emt 0:05:49]} Be7 {[%emt 0:01:24]} 13. a3 {[%emt 0:00:48]} b6 {[%emt 0:06:20]} 14. c4 {[%emt 0:08:54]} Nf4 {[%emt 0:00:40]} 15. Bxf4 {[%emt 0:00:56]} Qxf4 {[%emt 0:00:02]} 16. Ng3 {[%emt 0:00:44]} f5 {[%emt 0:11:15]} 17. Rae1 {[%emt 0:06:46]} e5 {[%emt 0:02:35]} 18. Nh5 {[%emt 0:05:22]} Qg4 {[%emt 0:03:23]} 19. Nxe5 {[%emt 0:06:53]} Nxe5 {[%emt 0:01:44]} 20. Rxe5 {[%emt 0:00:07]} Bd6 {[%emt 0:03:24]} 21. Be2 {[%emt 0:03:04]} Qg6 {[%emt 0:04:48]} 22. Re3 {[%emt 0:10:37]} Bb7 {[%emt 0:08:18]} 23. g3 {[%emt 0:00:17]} Be4 {[%emt 0:02:29]} 24. Qb3 {[%emt 0:10:08]} Kh8 {[%emt 0:02:20]} 25. Rd1 {[%emt 0:01:45]} Rad8 {[%emt 0:02:25]} 26. c5 {[%emt 0:04:02]} Bxc5 {[%emt 0:07:58]} 27. Nf4 {[%emt 0:00:26]} Rxd1+ {[%emt 0:01:00]} 28. Bxd1 {[%emt 0:01:10]} Qd6 {[%emt 0:00:07]} 29. Re1 {[%emt 0:01:09]} Rd8 {[%emt 0:03:11]} 30. Be2 {[%emt 0:04:17]} Qd4 {[%emt 0:14:24]} 31. Rf1 {[%emt 0:00:30]} Qf6 {[%emt 0:00:20]} 32. Rd1 {[%emt 0:00:47]} Rxd1+ {[%emt 0:01:27]} 33. Qxd1 {[%emt 0:02:02]} Qxb2 {[%emt 0:00:26]} 34. Qd8+ {[%emt 0:01:12]} Kh7 {[%emt 0:00:00]} 35. Qe8 {[%emt 0:00:44]} Qf6 {[%emt 0:03:41]} 36. Bc4 {[%emt 0:00:29]} Bxf2+ {[%emt 0:07:11]} 37. Kxf2 {[%emt 0:00:08]} Qd4+ {[%emt 0:00:04]} 38. Ke1 {[%emt 0:00:05]} Qc3+ {[%emt 0:00:08]} 39. Kf2 {[%emt 0:00:23]} Qd4+ {[%emt 0:00:16]} 40. Ke1 {[%emt 0:00:04]} Qc3+ {[%emt 0:00:33]} 41. Kf2 {[%emt 0:00:08]} 1/2-1/2

[Event "78th GEO-ch Women 1st League 2021"]
[Site "Tbilisi"]
[Date "2021.03.20"]
[Round "3.6"]
[White "Sordia, Marta"]
[Black "Pipia, Ekaterine"]
[Result "0-1"]
[ECO "B06"]
[WhiteElo "1226"]
[BlackElo "2019"]
[Annotator "NA"]
[PlyCount "66"]
[EventDate "2021.03.18"]
[EventType "swiss"]
[EventCountry "GEO"]
[SourceTitle "playchess.com"]
[Source "ChessBase"]
[SourceQuality "1"]
[TimeControl "5400+30"]

1. e4 {[%emt 0:00:00]} g6 {[%emt 0:13:03]} 2. d4 {[%emt 0:00:00]} Bg7 {[%emt 0:00:04]} 3. Nc3 {[%emt 0:00:01]} d6 {[%emt 0:00:03]} 4. Be3 {[%emt 0:00:52]} a6 {[%emt 0:00:07]} 5. Qd2 {[%emt 0:00:58]} b5 {[%emt 0:00:17]} 6. f3 {[%emt 0:01:09]} Nd7 {[%emt 0:00:12]} 7. g4 {[%emt 0:03:23]} Bb7 {[%emt 0:00:21]} 8. h4 {[%emt 0:01:55]} h6 {[%emt 0:05:01]} 9. O-O-O {[%emt 0:03:58]} Rc8 {[%emt 0:02:45]} 10. Kb1 {[%emt 0:05:59]} c5 {[%emt 0:00:36]} 11. dxc5 {[%emt 0:01:40]} Nxc5 {[%emt 0:00:24]} 12. Bd4 {[%emt 0:00:26]} Nf6 {[%emt 0:02:04]} 13. Nh3 {[%emt 0:02:26]} Ne6 {[%emt 0:02:22]} 14. Be3 {[%emt 0:01:28]} Nd7 {[%emt 0:01:55]} 15. Ne2 {[%emt 0:02:15]} Ne5 {[%emt 0:00:34]} 16. Neg1 {[%emt 0:12:45]} Nxf3 {[%emt 0:05:37]} 17. Nxf3 {[%emt 0:01:44]} Bxe4 {[%emt 0:00:06]} 18. Rc1 {[%emt 0:00:51]} Bxf3 {[%emt 0:01:08]} 19. Rg1 {[%emt 0:00:11]} Nc5 {[%emt 0:03:59]} 20. Nf2 {[%emt 0:04:33]} Na4 {[%emt 0:02:32]} 21. Bd4 {[%emt 0:01:07]} e5 {[%emt 0:00:48]} 22. Be3 {[%emt 0:06:47]} d5 {[%emt 0:01:49]} 23. Re1 {[%emt 0:04:04]} Qc7 {[%emt 0:01:53]} 24. Be2 {[%emt 0:03:52]} Bxe2 {[%emt 0:03:37]} 25. Rxe2 {[%emt 0:00:12]} d4 {[%emt 0:02:22]} 26. Bxd4 {[%emt 0:02:25]} O-O {[%emt 0:00:12]} 27. Be3 {[%emt 0:02:04]} Rfd8 {[%emt 0:00:16]} 28. Qe1 {[%emt 0:03:03]} e4 {[%emt 0:01:14]} 29. Nd1 {[%emt 0:01:12]} Rxd1+ {[%emt 0:01:41]} 30. Qxd1 {[%emt 0:00:10]} Nc3+ {[%emt 0:00:59]} 31. bxc3 {[%emt 0:00:09]} Qxc3 {[%emt 0:00:03]} 32. Bd4 {[%emt 0:03:20]} Bxd4 {[%emt 0:00:07]} 33. Kc1 {[%emt 0:00:10]} e3 {[%emt 0:01:08]} 0-1

[Event "78th GEO-ch Women 1st League 2021"]
[Site "Tbilisi"]
[Date "2021.03.20"]
[Round "3.7"]
[White "Tsotsonava, Elene"]
[Black "Mkrtchyan, Aida"]
[Result "1-0"]
[ECO "C08"]
[WhiteElo "1805"]
[BlackElo "1156"]
[Annotator "NA"]
[PlyCount "55"]
[EventDate "2021.03.18"]
[EventType "swiss"]
[EventCountry "GEO"]
[SourceTitle "playchess.com"]
[Source "ChessBase"]
[SourceQuality "1"]
[TimeControl "5400+30"]

1. e4 {[%emt 0:00:45]} e6 {[%emt 0:00:00]} 2. d4 {[%emt 0:00:10]} d5 {[%emt 0:00:27]} 3. Nd2 {[%emt 0:00:15]} c5 {[%emt 0:02:19]} 4. exd5 {[%emt 0:00:21]} exd5 {[%emt 0:00:39]} 5. Ngf3 {[%emt 0:00:14]} Bg4 {[%emt 0:03:03]} 6. Bb5+ {[%emt 0:02:08]} Nc6 {[%emt 0:02:08]} 7. O-O {[%emt 0:00:41]} Qb6 {[%emt 0:09:18]} 8. Re1+ {[%emt 0:05:26]} Nge7 {[%emt 0:06:19]} 9. Bxc6+ {[%emt 0:07:12]} bxc6 {[%emt 0:01:38]} 10. dxc5 {[%emt 0:00:15]} Qxc5 {[%emt 0:01:36]} 11. Nb3 {[%emt 0:01:03]} Qd6 {[%emt 0:10:16]} 12. Be3 {[%emt 0:03:20]} h5 {[%emt 0:11:29]} 13. Bc5 {[%emt 0:03:05]} Qc7 {[%emt 0:08:16]} 14. Qd3 {[%emt 0:03:29]} O-O-O {[%emt 0:05:44]} 15. Ne5 {[%emt 0:00:55]} Be6 {[%emt 0:03:53]} 16. Nd4 {[%emt 0:01:43]} g6 {[%emt 0:05:53]} 17. Nxe6 {[%emt 0:00:40]} fxe6 {[%emt 0:00:15]} 18. Nf7 {[%emt 0:01:13]} Bg7 {[%emt 0:00:46]} 19. Nxd8 {[%emt 0:00:19]} Rxd8 {[%emt 0:00:27]} 20. Rxe6 {[%emt 0:00:41]} Rd7 {[%emt 0:00:55]} 21. Qa6+ {[%emt 0:00:23]} Kb8 {[%emt 0:00:39]} 22. Rae1 {[%emt 0:00:32]} Bf8 {[%emt 0:00:50]} 23. R1e3 {[%emt 0:00:54]} d4 {[%emt 0:01:04]} 24. Rb3+ {[%emt 0:00:07]} Ka8 {[%emt 0:00:13]} 25. Bd6 {[%emt 0:01:36]} Qd8 {[%emt 0:02:49]} 26. Rxe7 {[%emt 0:00:42]} Rxe7 {[%emt 0:02:10]} 27. Qxc6+ {[%emt 0:00:08]} Rb7 {[%emt 0:20:24]} 28. Qxb7# {[%emt 1:05:43]} 1-0

[Event "78th GEO-ch Women 1st League 2021"]
[Site "Tbilisi"]
[Date "2021.03.20"]
[Round "3.8"]
[White "Sichinava, Mariam"]
[Black "Javakhishvili, Mariam"]
[Result "1/2-1/2"]
[ECO "E68"]
[WhiteElo "1516"]
[BlackElo "1671"]
[Annotator "NA"]
[PlyCount "68"]
[EventDate "2021.03.18"]
[EventType "swiss"]
[EventCountry "GEO"]
[SourceTitle "playchess.com"]
[Source "ChessBase"]
[SourceQuality "1"]
[TimeControl "5400+30"]

1. Nf3 {[%emt 0:01:24]} Nf6 {[%emt 0:00:00]} 2. g3 {[%emt 0:00:02]} g6 {[%emt 0:00:00]} 3. Bg2 {[%emt 0:00:04]} Bg7 {[%emt 0:00:02]} 4. c4 {[%emt 0:00:04]} O-O {[%emt 0:00:30]} 5. O-O {[%emt 0:00:05]} d6 {[%emt 0:00:06]} 6. d4 {[%emt 0:00:03]} Nbd7 {[%emt 0:00:31]} 7. Nc3 {[%emt 0:00:07]} c6 {[%emt 0:00:50]} 8. e4 {[%emt 0:00:16]} e5 {[%emt 0:00:59]} 9. d5 {[%emt 0:01:42]} Nc5 {[%emt 0:00:29]} 10. Re1 {[%emt 0:01:18]} a5 {[%emt 0:00:09]} 11. Qc2 {[%emt 0:01:58]} Ne8 {[%emt 0:34:44]} 12. Be3 {[%emt 0:05:28]} Qe7 {[%emt 0:03:38]} 13. Bxc5 {[%emt 0:04:43]} dxc5 {[%emt 0:00:06]} 14. Na4 {[%emt 0:00:17]} Bd7 {[%emt 0:05:59]} 15. Nb6 {[%emt 0:00:42]} Ra6 {[%emt 0:00:50]} 16. Nxd7 {[%emt 0:01:30]} Qxd7 {[%emt 0:00:02]} 17. Rad1 {[%emt 0:00:51]} Nd6 {[%emt 0:00:08]} 18. b3 {[%emt 0:01:47]} Qe7 {[%emt 0:04:27]} 19. Qd2 {[%emt 0:00:30]} Rd8 {[%emt 0:01:11]} 20. Qe3 {[%emt 0:02:52]} b6 {[%emt 0:06:09]} 21. dxc6 {[%emt 0:04:02]} Qc7 {[%emt 0:01:34]} 22. Rd5 {[%emt 0:00:09]} f6 {[%emt 0:00:06]} 23. Red1 {[%emt 0:01:30]} Qxc6 {[%emt 0:00:16]} 24. Qd3 {[%emt 0:00:06]} Bf8 {[%emt 0:00:05]} 25. Ne1 {[%emt 0:02:12]} Raa8 {[%emt 0:03:58]} 26. f4 {[%emt 0:02:54]} Nf7 {[%emt 0:00:02]} 27. Nf3 {[%emt 0:02:29]} Rxd5 {[%emt 0:02:01]} 28. exd5 {[%emt 0:03:22]} Qd6 {[%emt 0:00:23]} 29. fxe5 {[%emt 0:00:05]} Nxe5 {[%emt 0:00:26]} 30. Nxe5 {[%emt 0:00:08]} fxe5 {[%emt 0:01:10]} 31. Bh3 {[%emt 0:02:09]} Bg7 {[%emt 0:01:43]} 32. Be6+ {[%emt 0:00:05]} Kh8 {[%emt 0:00:03]} 33. Rf1 {[%emt 0:00:16]} Rf8 {[%emt 0:00:08]} 34. Rxf8+ {[%emt 0:00:52]} Bxf8 {[%emt 0:00:07]} 1/2-1/2

[Event "78th GEO-ch Women 1st League 2021"]
[Site "Tbilisi"]
[Date "2021.03.20"]
[Round "3.9"]
[White "Mamardashvili, Ana"]
[Black "Kirtadze, Anastasia"]
[Result "0-1"]
[ECO "D58"]
[WhiteElo "1416"]
[BlackElo "1810"]
[Annotator "NA"]
[PlyCount "50"]
[EventDate "2021.03.18"]
[EventType "swiss"]
[EventCountry "GEO"]
[SourceTitle "playchess.com"]
[Source "ChessBase"]
[SourceQuality "1"]
[TimeControl "5400+30"]

1. d4 {[%emt 0:00:00]} Nf6 {[%emt 0:00:11]} 2. c4 {[%emt 0:00:00]} e6 {[%emt 0:00:27]} 3. Nc3 {[%emt 0:00:09]} d5 {[%emt 0:00:30]} 4. Nf3 {[%emt 0:01:54]} Be7 {[%emt 0:02:29]} 5. Bg5 {[%emt 0:01:34]} O-O {[%emt 0:01:09]} 6. e3 {[%emt 0:00:59]} b6 {[%emt 0:02:05]} 7. cxd5 {[%emt 0:03:21]} exd5 {[%emt 0:02:12]} 8. Bd3 {[%emt 0:00:42]} h6 {[%emt 0:01:09]} 9. Bh4 {[%emt 0:00:50]} Bg4 {[%emt 0:02:42]} 10. O-O {[%emt 0:04:37]} c6 {[%emt 0:02:50]} 11. h3 {[%emt 0:04:10]} Bh5 {[%emt 0:02:45]} 12. Rc1 {[%emt 0:09:49]} Nbd7 {[%emt 0:04:24]} 13. Bg3 {[%emt 0:03:24]} Re8 {[%emt 0:00:54]} 14. Ba6 {[%emt 0:03:00]} Ne4 {[%emt 0:04:09]} 15. Bb7 {[%emt 0:09:03]} Bxf3 {[%emt 0:01:04]} 16. gxf3 {[%emt 0:01:27]} Nxg3 {[%emt 0:00:43]} 17. fxg3 {[%emt 0:00:36]} Qc7 {[%emt 0:00:48]} 18. Bxa8 {[%emt 0:03:47]} Qxg3+ {[%emt 0:02:04]} 19. Kh1 {[%emt 0:00:05]} Qxh3+ {[%emt 0:00:36]} 20. Kg1 {[%emt 0:00:06]} Qg3+ {[%emt 0:00:29]} 21. Kh1 {[%emt 0:00:04]} Bd6 {[%emt 0:00:14]} 22. Qe2 {[%emt 0:05:34]} Qh3+ {[%emt 0:01:58]} 23. Kg1 {[%emt 0:00:09]} Re6 {[%emt 0:00:12]} 24. Qg2 {[%emt 0:05:32]} Rg6 {[%emt 0:00:20]} 25. Qxg6 {[%emt 0:00:06]} Qh2# {[%emt 0:00:07]} 0-1

[Event "78th GEO-ch Women 1st League 2021"]
[Site "Tbilisi"]
[Date "2021.03.20"]
[Round "3.10"]
[White "Gvatua, Mariam"]
[Black "Mgeladze, Kesaria"]
[Result "1-0"]
[ECO "C13"]
[WhiteElo "1343"]
[BlackElo "1380"]
[Annotator "NA"]
[PlyCount "105"]
[EventDate "2021.03.18"]
[EventType "swiss"]
[EventCountry "GEO"]
[SourceTitle "playchess.com"]
[Source "ChessBase"]
[SourceQuality "1"]
[TimeControl "5400+30"]

1. d4 {[%emt 0:00:00]} Nf6 {[%emt 0:00:00]} 2. Nc3 {[%emt 0:00:00]} d5 {[%emt 0:00:29]} 3. Bg5 {[%emt 0:00:00]} e6 {[%emt 0:01:40]} 4. e4 {[%emt 0:00:00]} dxe4 {[%emt 0:01:21]} 5. Nxe4 {[%emt 0:00:00]} Be7 {[%emt 0:00:14]} 6. Bxf6 {[%emt 0:00:03]} gxf6 {[%emt 0:01:16]} 7. Nf3 {[%emt 0:00:21]} f5 {[%emt 0:01:26]} 8. Ng3 {[%emt 0:00:09]} b6 {[%emt 0:04:38]} 9. c3 {[%emt 0:00:55]} Bb7 {[%emt 0:03:37]} 10. Ne5 {[%emt 0:01:49]} Bf6 {[%emt 0:07:51]} 11. Nh5 {[%emt 0:01:25]} Bxe5 {[%emt 0:01:13]} 12. dxe5 {[%emt 0:00:12]} Qxd1+ {[%emt 0:00:18]} 13. Rxd1 {[%emt 0:00:14]} Nd7 {[%emt 0:00:33]} 14. f4 {[%emt 0:03:14]} a6 {[%emt 0:02:24]} 15. Rg1 {[%emt 0:01:33]} Rd8 {[%emt 0:02:22]} 16. b4 {[%emt 0:03:14]} Ke7 {[%emt 0:04:06]} 17. Bc4 {[%emt 0:03:04]} b5 {[%emt 0:02:38]} 18. Be2 {[%emt 0:01:28]} Nb6 {[%emt 0:07:39]} 19. Nf6 {[%emt 0:02:29]} Na4 {[%emt 0:03:32]} 20. Rc1 {[%emt 0:01:46]} Rc8 {[%emt 0:17:24]} 21. c4 {[%emt 0:00:54]} c6 {[%emt 0:00:31]} 22. c5 {[%emt 0:01:40]} Rcd8 {[%emt 0:00:36]} 23. a3 {[%emt 0:00:50]} Nb2 {[%emt 0:01:47]} 24. Rc3 {[%emt 0:00:23]} Rd4 {[%emt 0:00:53]} 25. g3 {[%emt 0:01:39]} h6 {[%emt 0:00:15]} 26. Rb3 {[%emt 0:01:48]} Nc4 {[%emt 0:00:43]} 27. Bd3 {[%emt 0:02:45]} Rhd8 {[%emt 0:01:14]} 28. Ke2 {[%emt 0:00:52]} a5 {[%emt 0:01:10]} 29. Rd1 {[%emt 0:02:57]} axb4 {[%emt 0:04:48]} 30. axb4 {[%emt 0:01:32]} Ra8 {[%emt 0:00:33]} 31. Bc2 {[%emt 0:02:46]} Rxd1 {[%emt 0:00:35]} 32. Kxd1 {[%emt 0:00:34]} Ra1+ {[%emt 0:00:22]} 33. Rb1 {[%emt 0:00:51]} Ra2 {[%emt 0:00:18]} 34. Rb3 {[%emt 0:01:07]} Ra1+ {[%emt 0:00:56]} 35. Rb1 {[%emt 0:00:21]} Ra8 {[%emt 0:02:17]} 36. Bd3 {[%emt 0:01:59]} Ra2 {[%emt 0:00:55]} 37. Bxc4 {[%emt 0:01:27]} bxc4 {[%emt 0:00:05]} 38. Rc1 {[%emt 0:01:07]} Ba6 {[%emt 0:00:14]} 39. Rc2 {[%emt 0:00:25]} Ra4 {[%emt 0:00:32]} 40. Rd2 {[%emt 0:00:46]} Bc8 {[%emt 0:00:59]} 41. Rd6 {[%emt 0:01:58]} Rxb4 {[%emt 0:00:59]} 42. Rxc6 {[%emt 0:00:18]} Rb8 {[%emt 0:00:40]} 43. Rc7+ {[%emt 0:01:32]} Kf8 {[%emt 0:00:04]} 44. c6 {[%emt 0:00:45]} Ra8 {[%emt 0:01:26]} 45. Kc2 {[%emt 0:01:47]} Ba6 {[%emt 0:01:02]} 46. Kc3 {[%emt 0:01:45]} Kg7 {[%emt 0:00:30]} 47. h4 {[%emt 0:09:48]} Bb5 {[%emt 0:02:22]} 48. h5 {[%emt 0:00:49]} Rb8 {[%emt 0:01:00]} 49. Rb7 {[%emt 0:01:55]} Rc8 {[%emt 0:00:45]} 50. Rxb5 {[%emt 0:00:06]} Rxc6 {[%emt 0:00:07]} 51. Rb4 {[%emt 0:00:55]} Rc7 {[%emt 0:00:44]} 52. Rb8 {[%emt 0:00:37]} Rc8 {[%emt 0:00:10]} 53. Ne8+ {[%emt 0:00:04]} 1-0

[Event "78th GEO-ch Women 1st League 2021"]
[Site "Tbilisi"]
[Date "2021.03.20"]
[Round "3.11"]
[White "Tasoshvili, Tamar"]
[Black "Oniani, Tamar"]
[Result "0-1"]
[ECO "D05"]
[WhiteElo "1528"]
[BlackElo "1604"]
[Annotator "NA RC"]
[PlyCount "94"]
[EventDate "2021.03.18"]
[EventType "swiss"]
[EventCountry "GEO"]
[SourceTitle "playchess.com"]
[Source "ChessBase"]
[SourceQuality "1"]
[TimeControl "5400+30"]

1. d4 {[%emt 0:06:03]} Nf6 {[%emt 0:01:21]} 2. Nf3 {[%emt 0:00:11]} e6 {[%emt 0:00:09]} 3. e3 {[%emt 0:00:04]} b6 {[%emt 0:00:18]} 4. Bd3 {[%emt 0:00:08]} Bb7 {[%emt 0:00:04]} 5. Nbd2 {[%emt 0:00:05]} d5 {[%emt 0:01:14]} 6. O-O {[%emt 0:00:08]} Bd6 {[%emt 0:00:29]} 7. b3 {[%emt 0:00:06]} O-O {[%emt 0:01:33]} 8. Bb2 {[%emt 0:00:04]} c5 {[%emt 0:00:23]} 9. Ne5 {[%emt 0:00:10]} Nc6 {[%emt 0:01:55]} 10. a3 {[%emt 0:00:06]} cxd4 {[%emt 0:02:41]} 11. exd4 {[%emt 0:00:03]} Ne7 {[%emt 0:00:04]} 12. f4 {[%emt 0:00:30]} Ne4 {[%emt 0:09:46]} 13. Bxe4 {[%emt 0:01:31]} dxe4 {[%emt 0:00:07]} 14. Re1 {[%emt 0:00:19]} f6 {[%emt 0:03:03]} 15. Nec4 {[%emt 0:00:55]} Bxf4 {[%emt 0:01:30]} 16. Nxe4 {[%emt 0:00:30]} b5 {[%emt 0:00:33]} 17. Ncd2 {[%emt 0:00:29]} Nf5 {[%emt 0:00:54]} 18. Nf1 {[%emt 0:01:18]} Qd5 {[%emt 0:06:52]} 19. Re2 {[%emt 0:03:43]} Nh4 {[%emt 0:31:22]} 20. Qe1 {[%emt 0:05:10]} g5 {[%emt 0:17:52]} 21. Qf2 {[%emt 0:11:53]} Qf5 {[%emt 0:04:25]} 22. Rae1 {[%emt 0:03:03]} Qg4 {[%emt 0:02:00]} 23. h3 {[%emt 0:01:24]} Qh5 {[%emt 0:00:53]} 24. Neg3 {[%emt 0:08:02]} Qg6 {[%emt 0:01:18]} 25. Rxe6 {[%emt 0:02:26]} Bxg2 {[%emt 0:00:24]} 26. Nh2 {[%emt 0:14:42]} Bxh3 {[%emt 0:00:43]} 27. Re7 {[%emt 0:00:46]} Ng2 {[%emt 0:02:45]} 28. R1e4 {[%emt 0:00:51]} Rae8 {[%emt 0:01:32]} 29. Nhf1 {[%emt 0:01:36]} Nh4 {[%emt 0:02:05]} 30. d5 {[%emt 0:01:08]} Bg2 {[%emt 0:01:10]} 31. Rxe8 {[%emt 0:01:42]} Rxe8 {[%emt 0:00:10]} 32. Rxe8+ {[%emt 0:00:30]} Qxe8 {[%emt 0:00:04]} 33. Bxf6 {[%emt 0:02:29]} Bxd5 {[%emt 0:00:05]} 34. Qxa7 {[%emt 0:04:09]} Nf3+ {[%emt 0:03:21]} 35. Kh1 {[%emt 0:00:18]} Qf7 {[%emt 0:02:24]} 36. Qxf7+ {[%emt 0:01:54]} Kxf7 {[%emt 0:00:03]} 37. Bd8 {[%emt 0:00:58]} Nd4+ {[%emt 0:00:52]} 38. Kg1 {[%emt 0:00:14]} Nxc2 {[%emt 0:00:04]} 39. a4 {[%emt 0:00:28]} bxa4 {[%emt 0:00:08]} 40. bxa4 {[%emt 0:00:01]} Kg6 {[%emt 0:01:57]} 41. Ne2 {[%emt 0:00:47]} Bb8 {[%emt 0:00:07]} 42. Bb6 {[%emt 0:00:37]} Nb4 {[%emt 0:01:13]} 43. Nc3 {[%emt 0:00:25]} Bb7 {[%emt 0:00:29]} 44. Ne3 {[%emt 0:00:34]} h5 {[%emt 0:00:04]} 45. Ne2 {[%emt 0:02:10]} Nd5 {[%emt 0:01:17]} 46. Nxd5 {[%emt 0:00:16]} Bxd5 {[%emt 0:00:04]} 47. Nd4 {[%emt 0:00:36]} h4 {[%emt 0:00:31]} 0-1

[Event "78th GEO-ch Women 1st League 2021"]
[Site "Tbilisi"]
[Date "2021.03.21"]
[Round "4.1"]
[White "Vakhania, Alexandra"]
[Black "Esadze, Tamari"]
[Result "1-0"]
[ECO "D02"]
[WhiteElo "2134"]
[BlackElo "1889"]
[Annotator "ChessBase"]
[PlyCount "69"]
[EventDate "2021.03.18"]
[EventType "swiss"]
[EventCountry "GEO"]
[SourceTitle "playchess.com"]
[Source "ChessBase"]
[SourceQuality "1"]
[TimeControl "5400+30"]

1. d4 {[%emt 0:00:48]} d5 {[%emt 0:00:00]} 2. Nf3 {[%emt 0:02:19]} Nf6 {[%emt 0:00:00]} 3. g3 {[%emt 0:00:16]} e6 {[%emt 0:01:26]} 4. Bg2 {[%emt 0:00:18]} c5 {[%emt 0:00:35]} 5. O-O {[%emt 0:00:27]} Nc6 {[%emt 0:00:51]} 6. c3 {[%emt 0:02:12]} Bd6 {[%emt 0:03:58]} 7. a3 {[%emt 0:04:44]} O-O {[%emt 0:00:53]} 8. b4 {[%emt 0:04:00]} c4 {[%emt 0:04:49]} 9. Bg5 {[%emt 0:01:11]} h6 {[%emt 0:09:44]} 10. Bxf6 {[%emt 0:00:23]} Qxf6 {[%emt 0:00:04]} 11. e4 {[%emt 0:00:12]} Qd8 {[%emt 0:02:58]} 12. Nbd2 {[%emt 0:01:26]} Be7 {[%emt 0:14:07]} 13. Re1 {[%emt 0:00:54]} Bf6 {[%emt 0:01:58]} 14. Nf1 {[%emt 0:00:44]} g6 {[%emt 0:08:53]} 15. Ne3 {[%emt 0:00:35]} Bg7 {[%emt 0:01:16]} 16. Nd2 {[%emt 0:00:25]} Ne7 {[%emt 0:05:13]} 17. f4 {[%emt 0:04:11]} Qd6 {[%emt 0:06:26]} 18. Qf3 {[%emt 0:05:33]} Rd8 {[%emt 0:00:26]} 19. h4 {[%emt 0:01:04]} Kh7 {[%emt 0:04:09]} 20. h5 {[%emt 0:00:29]} Rb8 {[%emt 0:01:22]} 21. g4 {[%emt 0:07:12]} b6 {[%emt 0:06:02]} 22. g5 {[%emt 0:07:57]} Bb7 {[%emt 0:01:48]} 23. hxg6+ {[%emt 0:04:05]} fxg6 {[%emt 0:01:23]} 24. e5 {[%emt 0:00:43]} Qc7 {[%emt 0:03:38]} 25. Ng4 {[%emt 0:00:09]} Nf5 {[%emt 0:01:39]} 26. Nf6+ {[%emt 0:00:15]} Kh8 {[%emt 0:04:05]} 27. Kf2 {[%emt 0:01:26]} h5 {[%emt 0:02:06]} 28. Rh1 {[%emt 0:01:59]} Bxf6 {[%emt 0:02:53]} 29. gxf6 {[%emt 0:00:42]} Rd7 {[%emt 0:06:31]} 30. Bh3 {[%emt 0:00:32]} Rh7 {[%emt 0:01:05]} 31. Rag1 {[%emt 0:01:02]} Rg8 {[%emt 0:01:00]} 32. Bxf5 {[%emt 0:00:35]} exf5 {[%emt 0:00:06]} 33. e6 {[%emt 0:01:33]} Rh6 {[%emt 0:01:54]} 34. Qe3 {[%emt 0:00:49]} Bc8 {[%emt 0:03:03]} 35. f7 {[%emt 0:00:24]} 1-0